Cogmind - Beta 13 @@@ ROGUE MODE // 2024.07.02 @ 21:29:20 Player: CogEmotions! Result: Destroyed by Y-45 Defender with Heavy Assault Rifle Performance ------------- Evolutions (2) 1000 Regions Visited (5) 1000 Robots Destroyed (76) 380 Value Destroyed (2127) 2127 Prototype IDs (2) 40 Alien Tech Used (0) 0 Bonus (434) 434 TOTAL SCORE: 4981 Bonus ------- High Alert Combat Kills 234 Entered Garrisons 200 Cogmind --------- Core Integrity 0/550 Matter 334/450 Energy 17/160 System Corruption 2% Temperature Cool (0) Movement Core (950) Ox18 Location -8/Garrison Parts ------- > --- POWER (2) -------- Light Nuclear Core > --- PROPULSION (2) --- (None) > --- UTILITY (5) ------ Improved Heat Sink High-capacity Storage Unit Compact Matter Pod Targeting Computer > --- WEAPON (2) ------- Pulse Rifle Ion Cannon > --- INVENTORY (20) --- Compact Battery (200) Melee Analysis Suite Ion Cannon Light Assault Rifle High-powered Shotgun High-powered Shotgun Peak State ------------ > --- POWER ------------ Cooled Ion Engine Cooled Ion Engine > --- PROPULSION ------- Light Treads Armored Treads > --- UTILITY ---------- High-capacity Storage Unit Targeting Computer Particle Charger Heavy Armor Plating > --- WEAPON ----------- Pulse Rifle Ion Cannon > --- INVENTORY -------- Cooled Ion Engine Improved Heat Sink Compact Battery Compact Matter Pod Improved Light Armor Plating Light Assault Rifle High-powered Shotgun High-powered Shotgun Grenade Launcher Grenade Launcher Mini Grenade Launcher [Rating: 29] Favorites ----------- Power Cooled Ion Engine Engine Cooled Ion Engine Power Core Light Nuclear Core Propulsion Light Treads Treads Light Treads Hover Unit Aerolev Unit Utility High-capacity Storage Unit Device Particle Charger Storage High-capacity Storage Unit Processor Targeting Computer Protection Heavy Armor Plating Weapon Light Assault Rifle Energy Gun Pulse Rifle Energy Cannon Ion Cannon Ballistic Gun Light Assault Rifle Launcher Mini Grenade Launcher Build | -11 -10 -10 -9 -8 -8 ------- Run | Yrd Mat Min Mat Mat Gar Slots Evolved 4 | . . . 2 2 . Power 1 | . . . . 1 . Propulsion . | . . . . . . Utility 3 | . . . 2 1 . Weapon . | . . . . . . Parts Attached 50 | 6 1 3 3 24 13 Power 6 | 1 . . . 3 2 Engine 5 | 1 . . . 3 1 Core 1 | . . . . . 1 Reactor . | . . . . . . Propulsion 12 | 2 . . . 8 2 Treads 10 | 2 . . . 6 2 Leg . | . . . . . . Wheel . | . . . . . . Hover 2 | . . . . 2 . Flight . | . . . . . . Utility 9 | 1 . 1 1 3 3 Device 2 | . . . . 1 1 Storage 4 | 1 . 1 . 1 1 Processor 1 | . . . 1 . . Hackware . | . . . . . . Protection 2 | . . . . 1 1 Artifact . | . . . . . . Weapon 23 | 2 1 2 2 10 6 Energy Gun 2 | . . . . 1 1 Energy Cannon 4 | . . . . 2 2 Ballistic Gun 8 | 2 . 1 . 3 2 Ballistic Cannon . | . . . . . . Launcher 9 | . 1 1 2 4 1 Special Weapon . | . . . . . . Impact Weapon . | . . . . . . Slashing Weapon . | . . . . . . Piercing Weapon . | . . . . . . Special Melee Weapon . | . . . . . . Unidentified Prototypes 2 | . . . . 2 . Parts Lost 15 | . . . . 6 9 Power 4 | . . . . 2 2 Propulsion 5 | . . . . 2 3 Utility 3 | . . . . . 3 Weapon 3 | . . . . 2 1 Highest Loss Streak 7 | . . . . 2 7 To Critical Strikes . | . . . . . . Average Slot Usage (%) 82 | . 85 85 66 79 96 Engine 14 | . 14 14 11 14 17 Treads 19 | . 28 28 22 16 17 Device 4 | . . . . 5 8 Storage 12 | . 14 14 11 10 16 Processor 6 | . . . . 9 9 Protection 4 | . . . . 6 8 Energy Gun 1 | . . . . 3 . Energy Cannon 3 | . . . . 4 5 Ballistic Gun 8 | . 24 25 4 2 10 Launcher 6 | . 3 2 17 6 1 Naked Turns . | . . . . . . Heaviest Build 86 | 12 14 49 50 83 86 Greatest Support 42 | 40 40 40 40 42 40 Greatest Overweight (x) 17 | . . 1 1 17 2 Average Overweight (x) 1 | . . . 1 1 1 Largest Inventory Capacity 20 | 8 8 20 20 20 20 Average Capacity 19 | 6 8 18 20 20 20 Most Carried 14 | 4 4 4 7 14 10 Average Carried 7 | 1 2 3 4 9 7 Final Capacity 20 | 8 8 20 20 20 20 Final Carried 11 | 1 4 3 6 11 6 Class Distribution -------------------- 100% | Mutant Dominant Class ---------------- Mutant | -10/Materials Mutant | -10/Mines Mutant | -9/Materials Mutant | -8/Materials Mutant | -8/Garrison Resources | -11 -10 -10 -9 -8 -8 ----------- Run | Yrd Mat Min Mat Mat Gar Matter Collected 1500 | 260 11 215 90 517 407 Remotely . | . . . . . . Salvage Created 1633 | . 31 58 175 666 703 Parts 128 | . 5 7 13 59 44 Haulers Intercepted 1 | . . . . 1 . Recyclers Shooed . | . . . . . . Parts Field Recycled . | . . . . . . Retrieved Matter . | . . . . . . Parts Self-Destructed . | . . . . . . Prevented . | . . . . . . Kills | -11 -10 -10 -9 -8 -8 ------- Run | Yrd Mat Min Mat Mat Gar Combat Hostiles Destroyed 62 | . 3 6 7 21 25 Guns 18 | . . 4 . 4 10 Cannons 12 | . . . . 2 10 AOE 32 | . 3 2 7 15 5 Classes Destroyed 12 | . 2 . 2 7 1 Worker 3 | . 1 . 1 1 . Builder 4 | . . . . 4 . Hauler 1 | . . . . 1 . Recycler 2 | . . . . 2 . Mechanic 2 | . . . . 2 . Watcher 2 | . . . 1 1 . Swarmer 30 | . 3 6 . 11 10 Grunt 21 | . . . 7 5 9 Brawler 1 | . . . . . 1 Duelist 1 | . . . . 1 . Sentry 8 | . . . . 3 5 Hunter 1 | . . . . 1 . Best Kill Streak 10 | . 4 3 3 10 7 Combat Bots Only 7 | . 3 3 3 6 7 Max Kills in Single Turn 4 | . 4 3 2 4 2 Gunslinging 1 | . . . . . 1 Exploded 3 | . 3 2 2 3 2 Melee . | . . . . . . Uniques/NPCs Destroyed . | . . . . . . Combat | -11 -10 -10 -9 -8 -8 -------- Run | Yrd Mat Min Mat Mat Gar Hostile Shots Fired 349 | . 12 36 11 120 170 Missed 111 | . 3 14 4 34 56 Damage Taken 3756 | . 95 181 157 1609 1714 Core 674 | . 20 46 55 218 335 Absorbed by Shields . | . . . . . . Core Remaining (%) 86 | 100 . 73 86 . . Volleys Fired 99 | . 1 9 13 34 42 Largest 2 | . 2 2 2 2 2 Hottest 123 | . 50 50 63 123 123 Shots Fired 188 | . 2 18 21 64 83 Gun 72 | . 1 16 5 24 26 Cannon 60 | . . . . 14 46 Launcher 56 | . 1 2 16 26 11 Special . | . . . . . . Kinetic 59 | . 1 16 5 12 25 Thermal 73 | . . . . 26 47 Explosive 56 | . 1 2 16 26 11 Electromagnetic . | . . . . . . Robot Hit Streak 20 | . 1 3 8 20 14 Robot Miss Streak 5 | . 1 2 3 5 5 Penetration Max . | . . . . . . Secondary Targets 4 | . . 1 . . 3 Max Gunslinging Chain 1 | . . 1 . . 1 Shots Hit Robots 121 | . 1 9 13 39 59 Core Hits 119 | . 4 8 16 53 38 Critical Kills . | . . . . . . Critical Parts Destroyed . | . . . . . . Critical Strikes 1 | . . . . 1 . Burn 1 | . . . . 1 . Melee Attacks . | . . . . . . Impact . | . . . . . . Slashing . | . . . . . . Piercing . | . . . . . . Sneak Attacks . | . . . . . . Combat Hostiles . | . . . . . . Follow-up Attacks . | . . . . . . Damage Inflicted 5358 | . 128 135 722 2447 1926 Guns 849 | . . 75 28 348 398 Cannons 990 | . . . . 158 832 Explosions 3436 | . 128 41 683 1888 696 Melee . | . . . . . . Ramming 83 | . . 19 11 53 . Kinetic 680 | . . 75 28 179 398 Thermal 1159 | . . . . 327 832 Explosive 3436 | . 128 41 683 1888 696 Electromagnetic . | . . . . . . Impact . | . . . . . . Slashing . | . . . . . . Piercing . | . . . . . . Highest Corruption 2 | . . . . 2 2 Average Corruption 2 | . . . . 2 2 Corruption Purged . | . . . . . . Corruption Blocked . | . . . . . . Effects 31 | . . . . 18 13 Message Errors 6 | . . . . 6 . Matter Fused 10 | . . . . 5 5 Heat Flow Errors 5 | . . . . 2 3 Energy Discharges 2 | . . . . 1 1 Data Loss (minor) 2 | . . . . 1 1 Data Loss (major) 1 | . . . . 1 . Misfires 2 | . . . . 1 1 Alerts 1 | . . . . . 1 Weapon Failures 2 | . . . . 1 1 Overload Shots . | . . . . . . Overflow Damage 180 | . . . . 163 17 Projectiles 8 | . . . . 3 5 Explosions 172 | . . . . 160 12 Melee . | . . . . . . Knockbacks 1 | . . . . 1 . Impact 1 | . . . . 1 . Kinetic . | . . . . . . Secondary . | . . . . . . Self-Inflicted Damage 575 | . 23 . 69 380 103 Shots 18 | . 1 . 2 11 4 Rammed 13 | . . 3 2 8 . Targets Rammed 13 | . . 3 2 8 . Kicked . | . . . . . . Crushed . | . . . . . . Highest Temperature 432 | . 10 10 14 432 245 Average Temperature 104 | . 7 7 6 135 83 Received Heat Transfer 1149 | . . . 51 459 639 Effects 2 | . . . . 2 . Shutdowns 2 | . . . . 2 . Siege Activations . | . . . . . . Robots Corrupted . | . . . . . . Combat Hostiles . | . . . . . . Parts Fried . | . . . . . . Impact Corruptions . | . . . . . . Robots Melted . | . . . . . . Combat Hostiles . | . . . . . . Parts Melted 3 | . . . . . 3 Heat Transferred 1961 | . . . . 629 1332 Parts Sabotaged . | . . . . . . Parts Stolen . | . . . . . . Parts Stripped . | . . . . . . Power Chain Reactions . | . . . . . . Alert | -11 -10 -10 -9 -8 -8 ------- Run | Yrd Mat Min Mat Mat Gar Peak Influence 871 | . 85 108 314 438 871 Initial 241 | . . 33 29 80 241 Average 260 | . 19 79 143 258 503 Maximum Alert Level 3 | . . . 1 2 3 Low Security (%) 41 | 100 100 100 83 22 . Level 1 33 | . . . 16 63 20 Level 2 24 | . . . . 14 76 Level 3 . | . . . . . 3 Level 4 . | . . . . . . Level 5 . | . . . . . . High Security . | . . . . . . Max Security . | . . . . . . Squads Dispatched 2 | . . . 1 1 . Investigation . | . . . . . . Extermination . | . . . . . . Reinforcement 2 | . . . 1 1 . Assault . | . . . . . . Garrison . | . . . . . . Intercept . | . . . . . . Searches Triggered . | . . . . . . Construction Impeded . | . . . . . . Haulers Reinforced . | . . . . . . Active Scanning Responses . | . . . . . . Cargo Convoy Interrupts . | . . . . . . Stealth | -11 -10 -10 -9 -8 -8 --------- Run | Yrd Mat Min Mat Mat Gar Distress Signals 5 | . 2 . 1 2 . Communications Jammed . | . . . . . . Distress Signals . | . . . . . . Times Spotted 88 | . 4 6 11 40 27 Peak Tracking Total 8 | . 4 3 4 8 6 Tactical Retreats 1 | . . . . . 1 Traps | -11 -10 -10 -9 -8 -8 ------- Run | Yrd Mat Min Mat Mat Gar Traps Triggered 6 | . . . . 1 5 Indirectly . | . . . . . . Trap Hack Attempts . | . . . . . . Triggered . | . . . . . . Disarmed . | . . . . . . Reprogrammed . | . . . . . . Reused . | . . . . . . Traps Extracted . | . . . . . . Installed . | . . . . . . Triggered . | . . . . . . Machines | -11 -10 -10 -9 -8 -8 ---------- Run | Yrd Mat Min Mat Mat Gar Machines Disabled 11 | . . . 3 6 2 Max in Single Turn 4 | . . . 1 4 1 Garrison Relay 1 | . . . . . 1 Machines Repaired . | . . . . . . Machines Dismantled . | . . . . . . Machines Sabotaged . | . . . . . . Overloaded Fab Kills . | . . . . . . Hacking | -11 -10 -10 -9 -8 -8 --------- Run | Yrd Mat Min Mat Mat Gar Machines Accessed 3 | . 1 . . 2 . Terminals 2 | . 1 . . 1 . Fabricators . | . . . . . . Repair Stations . | . . . . . . Recycling Units . | . . . . . . Scanalyzers . | . . . . . . Garrison Access 1 | . . . . 1 . Total Hacks 4 | . 1 . . 3 . Successful 2 | . 1 . . 1 . Failed 2 | . . . . 2 . Catastrophic 1 | . . . . 1 . Database Lockouts . | . . . . . . Manual . | . . . . . . Terminals 3 | . 1 . . 2 . Fabricators . | . . . . . . Repair Stations . | . . . . . . Recycling Units . | . . . . . . Scanalyzers . | . . . . . . Garrison Access 1 | . . . . 1 . Terminal Hacks 1 | . 1 . . . . Hauler Manifests 1 | . 1 . . . . Fabricator Hacks . | . . . . . . Repair Station Hacks . | . . . . . . Recycling Unit Hacks . | . . . . . . Scanalyzer . | . . . . . . Garrison Access Hacks 1 | . . . . 1 . Unlock Access 1 | . . . . 1 . Unauthorized Hacks . | . . . . . . Terminals . | . . . . . . Fabricators . | . . . . . . Repair Stations . | . . . . . . Recycling Units . | . . . . . . Scanalyzers . | . . . . . . Garrison Access . | . . . . . . Data Cores Recovered . | . . . . . . Used . | . . . . . . Hacking Detections 2 | . . . . 2 . Full Trace Events 1 | . . . . 1 . Feedback Events . | . . . . . . Feedback Blocked . | . . . . . . Robot Schematics Acquired . | . . . . . . Robots Built . | . . . . . . Authchips . | . . . . . . Time . | . . . . . . Total Robot Build Rating . | . . . . . . Part Schematics Acquired . | . . . . . . Parts Built . | . . . . . . Authchips . | . . . . . . Time . | . . . . . . Total Part Build Rating . | . . . . . . Parts Repaired . | . . . . . . Time . | . . . . . . Parts Recycled . | . . . . . . Recycled Matter . | . . . . . . Retrieved Matter . | . . . . . . Retrieved Components . | . . . . . . Parts Scanalyzed . | . . . . . . Part Schematics Acquired . | . . . . . . Parts Damaged . | . . . . . . Bothacking | -11 -10 -10 -9 -8 -8 ------------ Run | Yrd Mat Min Mat Mat Gar Used RIF Installer . | . . . . . . Robots Hacked . | . . . . . . Non-combat . | . . . . . . Combat . | . . . . . . Robot Hacks Applied . | . . . . . . Relay Couplers Released 3 | . . . . . 3 Machine Destruction 3 | . . . . . 3 Fabnet Peak Effective % . | . . . . . . Robots Rewired . | . . . . . . Allies Hacked . | . . . . . . Hacks Repelled . | . . . . . . Allies | -11 -10 -10 -9 -8 -8 -------- Run | Yrd Mat Min Mat Mat Gar Total Allies . | . . . . . . Largest Group . | . . . . . . Highest-Rated Group . | . . . . . . Highest-Rated Ally . | . . . . . . Total Orders . | . . . . . . Ally Attacks . | . . . . . . Total Damage . | . . . . . . Kills . | . . . . . . Allies Corrupted . | . . . . . . Allies Melted . | . . . . . . Intel | -11 -10 -10 -9 -8 -8 ------- Run | Yrd Mat Min Mat Mat Gar Robot Analysis Total . | . . . . . . Derelict Logs Recovered 2 | . . 2 . . . Drone Launches . | . . . . . . Drone Recoveries . | . . . . . . Exploration | -11 -10 -10 -9 -8 -8 ------------- Run | Yrd Mat Min Mat Mat Gar Turns Passed 4072 | 80 131 550 659 1699 953 Spaces Moved 1434 | 51 78 221 256 515 313 Core 13 | 12 . . . 1 . Treads 1421 | 39 78 221 256 514 313 Legs . | . . . . . . Wheels . | . . . . . . Hover . | . . . . . . Flight . | . . . . . . Fastest Speed 50 | 50 160 160 240 232 245 Average Speed 251 | 134 160 232 240 289 255 Slowest Speed 900 | 160 160 240 240 900 325 Overloaded Moves . | . . . . . . Propulsion Burnouts . | . . . . . . Robots Hopped . | . . . . . . Cave-ins Triggered . | . . . . . . Exploration Rate (%) 34 | 5 23 51 34 51 42 Regions Visited 5 Branch Regions 1 Pre-discovered Areas 1 | . . 1 . . . Known Exits Taken 2 | . . . 1 1 . Unknown Exits Taken 3 | 1 1 1 . . . Scrap Searched . | . . . . . . Spaces Dug . | . . . . . . Terrain Destroyed 384 | . 5 13 109 165 92 Melee . | . . . . . . Projectile 6 | . . . . 6 . AOE 378 | . 5 13 109 159 92 Terrain Rammed . | . . . . . . Walls Destroyed . | . . . . . . Machines Disabled . | . . . . . . Actions | -11 -10 -10 -9 -8 -8 --------- Run | Yrd Mat Min Mat Mat Gar Total 1662 | 63 82 238 278 621 380 Wait 7 | . . . 1 6 . Move 1430 | 50 77 220 255 515 313 Hop . | . . . . . . Pick Up 41 | 7 3 1 4 23 3 Fast Attach . | . . . . . . Attach 28 | 6 . . 1 14 7 Detach 1 | . . . . 1 . Swap 22 | . 1 3 2 10 6 Drop 13 | . . 2 . 10 1 Fire 99 | . 1 9 13 34 42 Melee . | . . . . . . Ram 3 | . . . . 3 . Kick . | . . . . . . Crush 10 | . . 3 2 5 . Escape Stasis 8 | . . . . . 8 Rewire . | . . . . . . Trap . | . . . . . . Miscellaneous . | . . . . . . Route ------- -11/Scrapyard -10/Materials -10/Mines -9/Materials (discovered 2 exits: *Mat x2) -8/Materials (discovered 3 exits: [*Fac] / [*Sto] / Gar) -8/Garrison (discovered 1 exit: [*Mat]) History --------- Turn | Location | Event 46 | -11/Scrapyard | Discovered new exit (range 12) 81 | -11/Scrapyard | Entered Materials 180 | -10/Materials | Discovered new exit (range 11) 212 | -10/Materials | Entered Mines 230 | -10/Mines | Learned location of Zion (-6) 310 | -10/Mines | Build established: Mutant 318 | -10/Mines | Discovered new exit (range 13) 330 | -10/Mines | Learned 4 Materials zone layouts 762 | -10/Mines | Entered Materials 762 | -9/Materials | Evolved 2 slots: Utility x2 763 | -9/Materials | Identified exit to Materials 1350 | -9/Materials | Discovered exit to Materials (range 11) 1421 | -9/Materials | Entered another Materials area 1421 | -8/Materials | Evolved 2 slots: Power x1, Utility x1 1723 | -8/Materials | Discovered new exit (range 11) 3049 | -8/Materials | Discovered new exit (range 8) 3120 | -8/Materials | Identified exit to Garrison 3120 | -8/Materials | Entered Garrison 3250 | -8/Garrison | Triggered checkpoint 3306 | -8/Garrison | Triggered checkpoint 3311 | -8/Garrison | Core integrity fell below 50% 3502 | -8/Garrison | Triggered checkpoint 3684 | -8/Garrison | Discovered new exit (range 11) 3820 | -8/Garrison | Triggered checkpoint 3876 | -8/Garrison | Triggered checkpoint 4022 | -8/Garrison | Triggered checkpoint 4055 | -8/Garrison | Core integrity fell below 20% 4073 | -8/Garrison | Destroyed by Y-45 Defender with Heavy Assault Rifle Last Messages --------------- 04032_ G-47 Trooper destroyed. 04034_ Critical hit (Burn: +37). 04035_ Arm. Treads destroyed. 04039_ Critical hit (Burn: +37). 04043_ G-47 Trooper destroyed. 04053_ Cld. Ion Engine destroyed. 04053_ Imp. Light Armor Plating destroyed. 04056_ The unstable cave ceiling collapses. 04056_ Y-45 Defender destroyed. 04057_ The unstable cave ceiling collapses. 04057_ Cld. Ion Engine destroyed. 04059_ Y-45 Defender destroyed. 04059_ Garrison Terminal disabled. 04064_ Critical hit (Burn: +37). 04065_ Missile Launcher destroyed. 04066_ Lgt. Treads destroyed. 04069_ B-36 Bruiser destroyed. 04070_ Lgt. Treads destroyed. 04072_ The unstable cave ceiling collapses. 04073_ Y-45 Defender destroyed. Map ----- +----------------------------------------------------+ | ???# = *= #??????????????????????????? | | ???#* [ % #??????????????????????????? | | ???# [ =[ #??????????????????????????? | | ???### ##[!%###??????????????????????????? | | ###### ## ## %=#############????????????????? | | " ######???????????? | | # ! ????? | | ###### !% ########## ######???????????? | | ?????# ##[ ######????????# #????????????????? | | ?????# ## #?????????????# #????????????????? | | ?????# #######????????? ???# #????????????????? | | ?????# #??????????????? ???# #????????????????? | | ?????# =+??????????????? ???# #????????????????? | | ?????# %#??????????????# #### ###### #????????? | | ?????# !#??????????????# ^ #????????? | | ###### #????????????###Y#### #######??????????? | | #???????????? ??# #????????????????? | | #??????????### ??# ?????????????? | | #??????????? ??# ?????????? | | ##########???????????# #%!??# ?????? | | ????????????????????? = ??############ #????? | | ?????????????????????? ###?#??????????????????? | | ??????????????????????? # !=# #??????????????????? | | ???????????????????????# =%%Y ???????????????????? | | ???????????????????????# ?????????????????????? | | ???????????????????????# @#??????????????????????? | | ??????????????????????# ?????????????????????? | | ??????????????????????# #????????????????????? | | ??????????????????????# % #???????????????????? | | ??????????????????????### #???????????????????? | | ????????????????????????#= ???????????????????? | | ???????????????????????? % ###??????????????????? | | "" #???????????????????? = ????????????????????? | | #???????????????????? # ????????????????????? | | #????????????????????# # #???????????????????? | | "" #????????????????????? ?# #???????????????????? | | ???#?????????????????????#?? #???????????????????? | | ???????????????????????????? #???????????????????? | | ???????????????????????????? "???????????????????? | | ?????????????????????????????T???????????????????? | | ?????????????????????????????????????????????????? | | ?????????????????????????????????????????????????? | | ?????????????????????????????????????????????????? | | ?????????????????????????????????????????????????? | | ?????????????????????????????????????????????????? | | ?????????????????????????????????????????????????? | | ?????????????????????????????????????????????????? | | ?????????????????????????????????????????????????? | | ?????????????????????????????????????????????????? | | ?????????????????????????????????????????????????? | +----------------------------------------------------+ Best States ------------- Heat Dissipation 45 Energy Generation 23 Energy Capacity 460 Matter Stores 450 Matter Capacity 450 Sight Range 16 Terrain Scan Density 10 Armor Coverage 600 Evasion (%) 50 Targeting Accuracy 5 Recoil Reduction 2 Particle Charging 15 Item Schematics ----------------- None Robot Schematics ------------------ None Fabricated ------------ Nothing Alien Tech Used ----------------- None Achievements -------------- None Challenges ------------ None Game ------ Seed PulseFactoryLattice Manual? 0 Play Time 00:34:12 Cumulative 21.4 hours Start 2024.07.02 @ 20:28:31 End 2024.07.02 @ 21:29:20 Sessions 1 Manual Loads 0 Difficulty Rogue Special Mode None Game No. 47 Rogue 47 Adventurer 0 Explorer 0 Win Type - Total 0 Types 0/0/0/0/0/0/0/0/0 Lore% 19 Gallery% 27 Achievement% 18 Wizard Run 0 Options --------- Layout 1 ASCII 0 Keyboard 0 Movement Mouse Keybinds 0 Fullscreen 2 Font 24/Smallcaps Map View 50x35 Zoom Use 0% Tactical HUD 1 Map Filters NONE Filters NONE Steam 1 RUN: d138454b-cba8-470c-846f-d96756becd22